fUSD/lending_fUSD_20240625
["ID","MTS","AMOUNT","RATE_DAILY","PERIOD"]
[330382273,1719338005281,-584.05,0.00022191,2]
[330382274,1719338005295,-2900.66,0.00022191,2]
[330382275,1719338005311,-2238.06,0.00022191,2]
[330382276,1719338005326,-3124.53,0.00022191,2]
[330382277,1719338005342,-762.22,0.00022191,2]
[330382278,1719338005356,-2923.75,0.00022191,2]
[330382279,1719338005371,-700.23,0.00022191,2]
[330382280,1719338005385,-2060.1,0.00022191,2]
[330382281,1719338005399,-1916.65,0.00022191,2]
[330382282,1719338005412,-160.60935182,0.00022191,2]
[330382283,1719338005424,-1733.73,0.00022191,2]
[330382284,1719338005437,-813.4,0.00022191,2]
[330382285,1719338005450,-579.87,0.00022191,2]
[330382286,1719338005461,-1319.57,0.00022191,2]
[330382287,1719338005473,-500.0,0.00022191,2]
[330382288,1719338006394,-594.09,0.00022191,2]
[330382289,1719338006420,-500.0,0.00022191,2]
[330382290,1719338006433,-1466.86,0.00022191,2]
[330382291,1719338006443,-805.41,0.00022191,2]
[330382292,1719338006452,-747.48,0.00022191,2]
[330382293,1719338006461,-823.04,0.00022191,2]
[330382294,1719338006471,-1175.45,0.00022191,2]
[330382295,1719338006481,-2342.23,0.00022191,2]
[330382296,1719338006491,-1142.76,0.00022191,2]
[330382297,1719338006501,-500.0,0.00022191,2]
[330382298,1719338006511,-500.0,0.00022191,2]
[330382299,1719338006521,-1742.95,0.00022191,2]
[330382300,1719338006530,-4082.89,0.00022191,2]
[330382301,1719338006540,-500.0,0.00022191,2]
[330382302,1719338006550,-2181.34,0.00022191,2]
[330382303,1719338006559,-1689.47,0.00022191,2]
[330382304,1719338006569,-500.0,0.00022191,2]
[330382305,1719338006578,-2213.32,0.00022191,2]
[330382306,1719338006588,-585.34,0.00022191,2]
[330382307,1719338006598,-1800.31,0.00022191,2]
[330382308,1719338006608,-500.0,0.00022191,2]
[330382309,1719338006618,-4580.93,0.00022191,2]
[330382310,1719338006628,-500.0,0.00022191,2]
[330382311,1719338006637,-3101.99,0.00022191,2]
[330382312,1719338006648,-2613.05,0.00022191,2]
[330382313,1719338006658,-1971.62,0.00022191,2]
[330382314,1719338006668,-1370.76,0.00022191,2]
[330382315,1719338006680,-1886.11,0.00022191,2]
[330382316,1719338006689,-500.0,0.00022191,2]
[330382317,1719338006699,-500.0,0.00022191,2]
[330382318,1719338006709,-704.37,0.00022191,2]
[330382319,1719338006719,-500.0,0.00022191,2]
[330382320,1719338006728,-4341.89,0.00022191,2]
[330382321,1719338006738,-500.0,0.00022191,2]
[330382322,1719338006749,-1807.06,0.00022191,2]
[330382323,1719338006759,-1880.49,0.00022191,2]
[330382324,1719338006769,-1338.15,0.00022191,2]
[330382325,1719338006778,-2231.21,0.00022191,2]
[330382326,1719338006788,-500.0,0.00022191,2]
[330382327,1719338006798,-619.17,0.00022191,2]
[330382328,1719338006808,-1282.5,0.00022191,2]
[330382329,1719338006819,-916.11,0.00022191,2]
[330382330,1719338006828,-2445.36,0.00022191,2]
[330382331,1719338006839,-800.62,0.00022191,2]
[330382332,1719338006850,-2602.84,0.00022191,2]
[330382333,1719338006859,-883.29,0.00022191,2]
[330382334,1719338006869,-1772.0,0.00022191,2]
[330382335,1719338006878,-4820.28,0.00022191,2]
[330382336,1719338006888,-529.48,0.00022191,2]
[330382337,1719338006898,-1217.56,0.00022191,2]
[330382338,1719338006908,-2640.7,0.00022191,2]
[330382339,1719338006918,-1941.76,0.00022191,2]
[330382340,1719338006930,-500.0,0.00022191,2]
[330382341,1719338006940,-1336.39,0.00022191,2]
[330382342,1719338006950,-500.0,0.00022191,2]
[330382343,1719338006960,-1027.49,0.00022191,2]
[330382344,1719338006969,-1409.22,0.00022191,2]
[330382345,1719338006979,-584.64785691,0.00022191,2]
[330382346,1719338006988,-592.68,0.00022191,2]
[330382347,1719338006998,-814.4,0.00022191,2]
[330382348,1719338007008,-839.77,0.00022191,2]
[330382349,1719338007017,-965.36,0.00022191,2]
[330382350,1719338007027,-1417.51,0.00022191,2]
[330382351,1719338007037,-1173.93,0.00022191,2]
[330382352,1719338007047,-657.51,0.00022191,7]
[330382353,1719338007057,-951.86,0.00022191,2]
[330382354,1719338007067,-835.47,0.00022191,2]
[330382355,1719338007076,-3257.55,0.00022191,2]
[330382356,1719338007087,-2073.78,0.00022191,2]
[330382357,1719338007097,-2021.58,0.00022191,2]
[330382358,1719338007107,-973.12,0.00022191,2]
[330382359,1719338007117,-2007.39,0.00022191,2]
[330382360,1719338007128,-369.855008,0.00022191,2]
[330382361,1719338007138,-500.0,0.00022191,2]
[330382362,1719338007148,-567.86,0.00022191,2]
[330382363,1719338007157,-500.0,0.00022191,2]
[330382364,1719338007167,-500.0,0.00022191,2]
[330382365,1719338007179,-957.72,0.00022191,2]
[330382366,1719338007192,-312.97310231,0.00022191,2]
[330382367,1719338007206,-683.7,0.00022191,2]
[330382368,1719338007217,-4421.52,0.00022191,2]
[330382369,1719338007227,-1115.85,0.00022191,2]
[330382370,1719338007238,-597.24,0.00022191,2]
[330382371,1719338007249,-517.85,0.00022191,2]
[330382372,1719338007260,-500.0,0.00022191,2]
[330382373,1719338007272,-500.0,0.00022191,2]
[330382374,1719338007287,-1088.07,0.00022191,2]
[330382375,1719338007298,-857.24,0.00022191,2]
[330382376,1719338007308,-2633.78,0.00022191,2]
[330382377,1719338007318,-2105.71,0.00022191,2]
[330382378,1719338007328,-500.0,0.00022191,2]
[330382379,1719338007338,-1021.73,0.00022191,2]
[330382380,1719338007347,-2302.84,0.00022191,2]
[330382381,1719338007357,-3949.53,0.00022191,2]
[330382382,1719338007368,-3888.53,0.00022191,2]
[330382383,1719338007378,-4247.19,0.00022191,2]
[330382384,1719338007388,-500.0,0.00022191,2]
[330382385,1719338007398,-918.37,0.00022191,2]
[330382386,1719338007410,-500.0,0.00022191,2]
[330382387,1719338007420,-3324.06,0.00022191,2]
[330382388,1719338007432,-4509.77,0.00022191,2]
[330382389,1719338007443,-524.5,0.00022191,2]
[330382390,1719338007452,-770.81,0.00022191,2]
[330382391,1719338007462,-2990.81,0.00022191,2]
[330382392,1719338007473,-4435.09,0.00022191,2]
[330382393,1719338007484,-787.48,0.00022191,2]
[330382394,1719338007494,-816.41,0.00022191,2]
[330382395,1719338007504,-524.09,0.00022191,2]
[330382396,1719338007513,-588.33,0.00022191,2]
[330382397,1719338007523,-2156.33,0.00022191,2]
[330382398,1719338007534,-3040.27,0.00022191,2]
[330382399,1719338007543,-820.87,0.00022191,2]
[330382400,1719338007553,-1819.63,0.00022191,2]
[330382401,1719338007563,-615.73,0.00022191,2]
[330382402,1719338007573,-3953.78,0.00022191,2]
[330382403,1719338007583,-593.21,0.00022191,2]
[330382404,1719338007593,-752.59,0.00022191,2]
[330382405,1719338007604,-1620.29,0.00022191,2]
[330382406,1719338007615,-1102.6,0.00022191,2]
[330382407,1719338007625,-2816.47,0.00022191,2]
[330382408,1719338007635,-726.8,0.00022191,2]
[330382409,1719338007646,-500.0,0.00022191,2]
[330382410,1719338007657,-904.28,0.00022191,2]
[330382411,1719338007667,-4616.86,0.00022191,2]
[330382412,1719338007678,-2389.99,0.00022191,2]
[330382413,1719338007688,-1761.28,0.00022191,2]
[330382414,1719338007697,-1001.05,0.00022191,2]
[330382415,1719338007707,-745.04,0.00022191,2]
[330382416,1719338007717,-1342.38,0.00022191,2]
[330382417,1719338007727,-4472.18,0.00022191,2]
[330382418,1719338007737,-4354.84,0.00022191,2]
[330382419,1719338007746,-1202.61,0.00022191,2]
[330382420,1719338007756,-500.0,0.00022191,2]
[330382421,1719338007766,-956.56,0.00022191,2]
[330382422,1719338007775,-4593.86,0.00022191,2]
[330382423,1719338007785,-1877.02,0.00022191,2]
[330382424,1719338007794,-528.63,0.00022191,2]
[330382425,1719338007804,-1269.87,0.00022191,2]
[330382426,1719338007814,-500.0,0.00022191,2]
[330382427,1719338007823,-500.0,0.00022191,2]
[330382428,1719338007832,-500.0,0.00022191,2]
[330382429,1719338007842,-1489.93,0.00022191,2]
[330382430,1719338007851,-500.0,0.00022191,2]
[330382431,1719338007860,-4713.61,0.00022191,2]
[330382432,1719338007870,-875.21,0.00022191,2]
[330382433,1719338007880,-3570.88,0.00022191,2]
[330382434,1719338007890,-2157.36,0.00022191,2]
[330382435,1719338007900,-3239.05,0.00022191,2]
[330382436,1719338007910,-517.55,0.00022191,2]
[330382437,1719338007920,-3523.21,0.00022191,2]
[330382438,1719338007933,-88150.18,0.00022191,2]
[330382439,1719338007943,-724.21,0.00022191,2]
[330382440,1719338007953,-7491.31,0.00022191,2]
[330382441,1719338007963,-500.0,0.00022191,2]
[330382442,1719338007973,-1942.81,0.00022191,2]
[330382443,1719338007983,-1819.03,0.00022191,2]
[330382444,1719338007993,-504.65,0.00022191,2]
[330382445,1719338008003,-503.8,0.00022191,2]
[330382446,1719338008014,-755.86,0.00022191,2]
[330382447,1719338008024,-500.0,0.00022191,2]
[330382448,1719338008034,-500.0,0.00022191,2]
[330382449,1719338008044,-1033.56,0.00022191,2]
[330382450,1719338008054,-867.52,0.00022191,2]
[330382451,1719338008064,-3677.19,0.00022191,2]
[330382452,1719338008074,-869.1,0.00022191,2]
[330382453,1719338008084,-319.69676551,0.00022191,2]
[330382454,1719338008095,-2597.7,0.00022191,2]
[330382455,1719338008105,-1409.52,0.00022191,2]
[330382456,1719338008115,-719.97,0.00022191,2]
[330382457,1719338008125,-500.0,0.00022191,2]
[330382458,1719338008135,-4086.22,0.00022191,2]
[330382459,1719338008145,-522.58,0.00022191,2]
[330382460,1719338008156,-504.45,0.00022191,2]
[330382461,1719338008167,-4448.43,0.00022191,2]
[330382462,1719338008177,-500.0,0.00022191,2]
[330382463,1719338008188,-1285.26,0.00022191,2]
[330382464,1719338008203,-881.49,0.00022191,2]
[330382465,1719338008213,-1817.94,0.00022191,2]
[330382466,1719338008223,-922.55,0.00022191,2]
[330382467,1719338008234,-4305.82,0.00022191,2]
[330382468,1719338008244,-5556.35,0.00022191,2]
[330382469,1719338008254,-500.0,0.00022191,2]
[330382470,1719338008264,-1507.92,0.00022191,2]
[330382471,1719338008276,-1298.55,0.00022191,2]
[330382472,1719338008286,-2413.43,0.00022191,2]
[330382473,1719338008296,-3590.68,0.00022191,2]
[330382474,1719338008307,-1317.91,0.00022191,2]
[330382475,1719338008317,-1549.61,0.00022191,2]
[330382476,1719338008327,-2001.24,0.00022191,2]
[330382477,1719338008338,-3243.57,0.00022191,2]
[330382478,1719338008349,-564.53,0.00022191,2]
[330382479,1719338008359,-1628.62,0.00022191,2]
[330382480,1719338008369,-2964.41,0.00022191,2]
[330382481,1719338008379,-733.32,0.00022191,2]
[330382482,1719338008390,-3914.84,0.00022191,2]
[330382483,1719338008400,-3375.19,0.00022191,2]
[330382484,1719338008410,-500.0,0.00022191,2]
[330382485,1719338008420,-2549.76,0.00022191,2]
[330382486,1719338008433,-971.21,0.00022191,2]
[330382487,1719338008443,-1141.9,0.00022191,2]
[330382488,1719338008453,-4437.26,0.00022191,2]
[330382489,1719338008463,-14641.98,0.00022191,2]
[330382490,1719338008474,-500.0,0.00022191,2]
[330382491,1719338008484,-716.2,0.00022191,2]
[330382492,1719338008494,-2142.83,0.00022191,2]
[330382493,1719338008503,-1706.95,0.00022191,2]
[330382494,1719338008514,-500.0,0.00022191,2]
[330382495,1719338008524,-1309.2,0.00022191,2]
[330382496,1719338008534,-6040.67,0.00022191,2]
[330382497,1719338008544,-500.0,0.00022191,2]
[330382498,1719338008553,-1734.08,0.00022191,2]
[330382499,1719338008564,-1799.68,0.00022191,2]
[330382500,1719338008573,-500.0,0.00022191,2]
[330382501,1719338008583,-1105.8,0.00022191,2]
[330382502,1719338008596,-955.34,0.00022191,2]
[330382503,1719338008606,-500.0,0.00022191,2]
[330382504,1719338008616,-1732.57,0.00022191,2]
[330382505,1719338008626,-522.82170964,0.00022191,2]
[330382506,1719338008635,-2122.24,0.00022191,2]
[330382507,1719338008645,-932.92,0.00022191,2]
[330382508,1719338008655,-1579.37,0.00022191,2]
[330382509,1719338008665,-3399.27,0.00022191,2]
[330382510,1719338008676,-355.38543875,0.00022191,2]
[330382511,1719338008686,-2440.43,0.00022191,2]
[330382512,1719338008696,-3708.7,0.00022191,2]
[330382513,1719338008706,-1254.93,0.00022191,2]
[330382514,1719338008716,-2081.22,0.00022191,2]
[330382515,1719338008726,-1071.44,0.00022191,2]
[330382516,1719338008847,-500.0,0.00022191,2]
[330382517,1719338008857,-2321.72,0.00022191,2]
[330382518,1719338008867,-59416.31,0.00022191,2]
[330382519,1719338008877,-1241.56,0.00022191,2]
[330382520,1719338008886,-565.98,0.00022191,2]
[330382521,1719338008896,-5136.03,0.00022191,2]
[330382522,1719338008905,-2376.71,0.00022191,2]
[330382523,1719338008915,-2867.83,0.00022191,2]
[330382524,1719338008925,-1989.23,0.00022191,2]
[330382525,1719338008934,-572.13,0.00022191,2]
[330382526,1719338008943,-564.08,0.00022191,2]
[330382527,1719338008953,-500.0,0.00022191,2]
[330382528,1719338008963,-500.0,0.00022191,2]
[330382529,1719338008972,-1377.37,0.00022191,2]
[330382530,1719338008982,-2476.55,0.00022191,2]
[330382531,1719338008991,-2711.7,0.00022191,2]
[330382532,1719338009001,-572.5,0.00022191,2]
[330382533,1719338009010,-7381.85,0.00022191,2]
[330382534,1719338009020,-500.0,0.00022191,2]
[330382535,1719338009030,-500.0,0.00022191,2]
[330382536,1719338009039,-4739.43,0.00022191,2]
[330382537,1719338009050,-3777.42,0.00022191,2]
[330382538,1719338009060,-2118.67,0.00022191,2]
[330382539,1719338009070,-3727.83,0.00022191,2]
[330382540,1719338009080,-899.15,0.00022191,2]
[330382541,1719338009090,-1249.51,0.00022191,2]
[330382542,1719338009100,-1714.59,0.00022191,2]
[330382543,1719338009110,-1124.92,0.00022191,2]
[330382544,1719338009120,-500.0,0.00022191,2]
[330382545,1719338009134,-7801.42,0.00022191,2]
[330382546,1719338009144,-1269.94,0.00022191,2]
[330382547,1719338009153,-1185.0,0.00022191,2]
[330382548,1719338009163,-500.0,0.00022191,2]
[330382549,1719338009172,-513.46,0.00022191,2]
[330382550,1719338009183,-756.47,0.00022191,2]
[330382551,1719338009195,-534.89,0.00022191,2]
[330382552,1719338009206,-5672.8,0.00022191,2]
[330382553,1719338009216,-2615.49,0.00022191,2]
[330382554,1719338009225,-646.58,0.00022191,2]
[330382555,1719338009237,-804.63,0.00022191,2]
[330382556,1719338009246,-1157.21,0.00022191,2]
[330382557,1719338009256,-2694.51,0.00022191,2]
[330382558,1719338009268,-662.07,0.00022191,2]
[330382559,1719338009279,-1217.03,0.00022191,2]
[330382560,1719338009289,-771.68,0.00022191,2]
[330382561,1719338009299,-500.0,0.00022191,2]
[330382562,1719338009309,-2626.43,0.00022191,2]
[330382563,1719338009318,-4836.5,0.00022191,2]
[330382564,1719338009327,-754.98,0.00022191,2]
[330382565,1719338009337,-1630.22,0.00022191,2]
[330382566,1719338009347,-2071.66,0.00022191,2]
[330382567,1719338009356,-524.31,0.00022191,2]
[330382568,1719338009365,-500.0,0.00022191,2]
[330382569,1719338009375,-781.04,0.00022191,2]
[330382570,1719338009384,-1588.79,0.00022191,2]
[330382571,1719338009393,-500.0,0.00022191,2]
[330382572,1719338009404,-1092.3,0.00022191,2]
[330382573,1719338009413,-2469.59,0.00022191,2]
[330382574,1719338009423,-1168.43,0.00022191,2]
[330382575,1719338009433,-500.0,0.00022191,2]
[330382576,1719338009442,-6611.18,0.00022191,2]
[330382577,1719338009451,-854.06,0.00022191,2]
[330382578,1719338009460,-536.71,0.00022191,2]
[330382579,1719338009469,-500.0,0.00022191,2]
[330382580,1719338009479,-8477.0,0.00022191,2]
[330382581,1719338009488,-987.05,0.00022191,2]
[330382582,1719338009497,-500.0,0.00022191,2]
[330382583,1719338009506,-500.0,0.00022191,2]
[330382584,1719338009515,-1672.78,0.00022191,2]
[330382585,1719338009524,-500.0,0.00022191,2]
[330382586,1719338009533,-500.0,0.00022191,2]
[330382587,1719338009542,-5214.8,0.00022191,2]
[330382588,1719338009551,-500.0,0.00022191,2]
[330382589,1719338009560,-996.42,0.00022191,2]
[330382590,1719338009569,-3032.63,0.00022191,2]
[330382591,1719338009579,-3109.31,0.00022191,2]
[330382593,1719338009588,-500.0,0.00022191,2]
[330382594,1719338009596,-1348.4,0.00022191,2]
[330382595,1719338009606,-650.12,0.00022191,2]
[330382596,1719338009615,-1123.41,0.00022191,2]
[330382597,1719338009624,-500.0,0.00022191,2]
[330382598,1719338009633,-732.06,0.00022191,2]
[330382599,1719338009643,-500.0,0.00022191,2]
[330382600,1719338009651,-10484.79,0.00022191,2]
[330382601,1719338009660,-500.0,0.00022191,2]
[330382602,1719338009670,-1238.1,0.00022191,2]
[330382603,1719338009679,-3533.14,0.00022191,2]
[330382604,1719338009688,-3632.37,0.00022191,2]
[330382605,1719338009697,-500.0,0.00022191,2]
[330382606,1719338009707,-5123.32,0.00022191,2]
[330382607,1719338009716,-500.0,0.00022191,2]
[330382608,1719338009726,-4888.19,0.00022191,2]
[330382609,1719338009735,-712.46,0.00022191,2]
[330382610,1719338009744,-862.31,0.00022191,2]
[330382611,1719338009753,-500.0,0.00022191,2]
[330382612,1719338009763,-551.14,0.00022191,2]
[330382613,1719338009772,-500.0,0.00022191,2]
[330382614,1719338009782,-560.41,0.00022191,2]
[330382615,1719338009791,-549.74337559,0.00022191,2]
[330382616,1719338009800,-2962.86,0.00022191,2]
[330382617,1719338009810,-1124.52,0.00022191,2]
[330382618,1719338009819,-500.0,0.00022191,2]
[330382619,1719338009828,-872.11,0.00022191,2]
[330382620,1719338009837,-3045.87,0.00022191,2]
[330382621,1719338009846,-505.71987672,0.00022191,2]
[330382622,1719338009855,-5218.77,0.00022191,2]
[330382623,1719338009864,-1050.12,0.00022191,2]
[330382624,1719338009873,-500.0,0.00022191,2]
[330382625,1719338009882,-1520.45,0.00022191,2]
[330382626,1719338009892,-2187.74,0.00022191,2]
[330382627,1719338009901,-646.32,0.00022191,2]
[330382628,1719338009910,-537.51,0.00022191,2]
[330382629,1719338009919,-500.0,0.00022191,2]
[330382630,1719338009928,-2920.92,0.00022191,2]
[330382631,1719338009937,-7369.5,0.00022191,2]
[330382632,1719338009947,-1872.97,0.00022191,2]
[330382633,1719338009957,-4019.83,0.00022191,2]
[330382634,1719338009966,-500.0,0.00022191,2]
[330382635,1719338009975,-414.79616205,0.00022191,2]
[330382636,1719338009984,-812.36,0.00022191,2]
[330382637,1719338009994,-500.0,0.00022191,2]
[330382638,1719338010003,-6045.57,0.00022191,2]
[330382639,1719338010012,-634.34,0.00022191,2]
[330382640,1719338010022,-587.96,0.00022191,2]
[330382641,1719338010031,-2739.91,0.00022191,2]
[330382642,1719338010041,-805.26,0.00022191,2]
[330382643,1719338010050,-1158.31,0.00022191,2]
[330382644,1719338010059,-501.82279203,0.00022191,2]
[330382645,1719338010069,-504.45140679,0.00022191,2]
[330382646,1719338010079,-1134.01,0.00022191,2]
[330382647,1719338010089,-615.9,0.00022191,2]
[330382648,1719338010098,-626.71358504,0.00022191,2]
[330382649,1719338010108,-1656.37,0.00022191,2]
[330382650,1719338010118,-2906.26,0.00022191,2]
[330382651,1719338010127,-2209.86,0.00022191,2]
[330382652,1719338010137,-500.0,0.00022191,2]
[330382653,1719338010146,-500.0,0.00022191,2]
[330382654,1719338010156,-1797.61,0.00022191,2]
[330382655,1719338010165,-1052.7,0.00022191,2]
[330382656,1719338010174,-1660.97,0.00022191,2]
[330382657,1719338010186,-643.79,0.00022191,2]
[330382658,1719338010200,-500.0,0.00022191,2]
[330382659,1719338010209,-500.0,0.00022191,2]
[330382660,1719338010219,-3674.69,0.00022191,2]
[330382661,1719338010228,-18533.12,0.00022191,2]
[330382662,1719338010238,-9362.98,0.00022191,2]
[330382663,1719338010247,-521.43,0.00022191,2]
[330382664,1719338010256,-500.0,0.00022191,2]
[330382665,1719338010266,-181.94476255,0.00022191,2]
[330382666,1719338010278,-987.45,0.00022191,2]
[330382667,1719338010288,-500.0,0.00022191,2]
[330382668,1719338010297,-1828.54,0.00022191,2]
[330382669,1719338010307,-1060.9,0.00022191,2]
[330382670,1719338010316,-500.0,0.00022191,2]
[330382671,1719338010326,-1048.33,0.00022191,2]
[330382672,1719338010335,-500.0,0.00022191,2]
[330382673,1719338010344,-3489.35,0.00022191,2]
[330382674,1719338010353,-582.75,0.00022191,2]
[330382675,1719338010362,-50997.71,0.00022191,2]
[330382676,1719338010372,-1090.36,0.00022191,2]
[330382677,1719338010381,-588.44,0.00022191,2]
[330382678,1719338010391,-3826.38,0.00022191,2]
[330382679,1719338010402,-7330.4,0.00022191,2]
[330382680,1719338010411,-1076.79,0.00022191,2]
[330382681,1719338010421,-875.7,0.00022191,2]
[330382682,1719338010430,-2013.15,0.00022191,2]
[330382683,1719338010439,-1764.68,0.00022191,2]
[330382684,1719338010448,-2546.28,0.00022191,2]
[330382685,1719338010458,-500.0,0.00022191,2]
[330382686,1719338010467,-710.06,0.00022191,2]
[330382687,1719338010475,-1202.57,0.00022191,2]
[330382688,1719338010485,-2661.42,0.00022191,2]
[330382689,1719338010494,-500.0,0.00022191,2]
[330382690,1719338010503,-632.99,0.00022191,2]
[330382691,1719338010512,-2226.45,0.00022191,2]
[330382692,1719338010521,-500.0,0.00022191,2]
[330382693,1719338010530,-538.22,0.00022191,2]
[330382694,1719338010539,-575.15,0.00022191,2]
[330382695,1719338010548,-1320.08,0.00022191,2]
[330382696,1719338010557,-13097.11,0.00022191,2]
[330382697,1719338010567,-500.0,0.00022191,2]
[330382698,1719338010576,-500.0,0.00022191,2]
[330382699,1719338010585,-500.0,0.00022191,2]
[330382700,1719338010594,-1721.67,0.00022191,2]
[330382701,1719338010603,-1003.19,0.00022191,2]
[330382702,1719338010612,-1938.52,0.00022191,2]
[330382703,1719338010624,-2588.15,0.00022191,2]
[330382704,1719338010635,-38471.4,0.00022191,2]
[330382705,1719338010645,-2469.45,0.00022191,2]
[330382706,1719338010654,-7195.96,0.00022191,2]
[330382707,1719338010663,-500.0,0.00022191,2]
[330382708,1719338010673,-3038.22,0.00022191,2]
[330382709,1719338010684,-3163.49,0.00022191,2]
[330382710,1719338010693,-3940.81,0.00022191,2]
[330382711,1719338010702,-500.0,0.00022191,2]
[330382712,1719338010715,-860.82,0.00022191,2]
[330382713,1719338010724,-1243.76,0.00022191,2]
[330382714,1719338010734,-935.24,0.00022191,2]
[330382715,1719338010743,-39156.53,0.00022191,2]
[330382716,1719338010753,-500.0,0.00022191,2]
[330382717,1719338010762,-5532.62,0.00022191,2]
[330382718,1719338010771,-500.0,0.00022191,2]
[330382719,1719338010781,-2133.33,0.00022191,2]
[330382720,1719338010791,-500.0,0.00022191,2]
[330382721,1719338010800,-500.0,0.00022191,2]
[330382722,1719338010809,-1003.49,0.00022191,2]
[330382723,1719338010818,-804.85,0.00022191,2]
[330382724,1719338010827,-27639.02,0.00022191,2]
[330382725,1719338010837,-205.51992979,0.00022191,2]
[330382726,1719338010846,-3599.25,0.00022191,2]
[330382727,1719338010856,-3865.6,0.00022191,2]
[330382728,1719338010865,-1591.79,0.00022191,2]
[330382729,1719338010874,-3089.03,0.00022191,2]
[330382730,1719338010884,-828.38,0.00022191,2]
[330382731,1719338010894,-500.0,0.00022191,2]
[330382732,1719338010903,-13348.12,0.00022191,2]
[330382733,1719338010912,-19322.86,0.00022191,2]
[330382734,1719338010921,-3823.25,0.00022191,2]
[330382735,1719338010932,-2767.76,0.00022191,2]
[330382736,1719338010941,-2132.96,0.00022191,2]
[330382737,1719338010950,-516.72,0.00022191,2]
[330382738,1719338010959,-829.42,0.00022191,2]
[330382739,1719338010968,-768.12,0.00022191,2]
[330382740,1719338010978,-2051.61,0.00022191,2]
[330382741,1719338010988,-500.0,0.00022191,2]
[330382742,1719338010997,-1930.49,0.00022191,2]
[330382743,1719338011007,-1106.84,0.00022191,2]
[330382744,1719338011017,-500.0,0.00022191,2]
[330382745,1719338011026,-3643.02,0.00022191,2]
[330382746,1719338011035,-500.0,0.00022191,2]
[330382747,1719338011045,-2716.1,0.00022191,2]
[330382748,1719338011054,-571.25,0.00022191,2]
[330382749,1719338011064,-500.0,0.00022191,2]
[330382750,1719338011073,-9367.05,0.00022191,2]
[330382751,1719338011083,-500.0,0.00022191,2]
[330382752,1719338011093,-500.0,0.00022191,2]
[330382753,1719338011103,-500.0,0.00022191,2]
[330382754,1719338011111,-5116.79,0.00022191,2]
[330382755,1719338011121,-658.03,0.00022191,2]
[330382756,1719338011130,-6152.62,0.00022191,2]
[330382757,1719338011140,-1026.1,0.00022191,2]
[330382758,1719338011149,-1760.02,0.00022191,2]
[330382759,1719338011158,-500.0,0.00022191,2]
[330382760,1719338011167,-1640.24,0.00022191,2]
[330382761,1719338011176,-500.0,0.00022191,2]
[330382762,1719338011186,-19689.46,0.00022191,2]
[330382763,1719338011199,-500.0,0.00022191,2]
[330382764,1719338011208,-1038.72,0.00022191,2]
[330382765,1719338011217,-3388.45,0.00022191,2]
[330382766,1719338011226,-500.0,0.00022191,2]
[330382767,1719338011237,-500.0,0.00022191,2]
[330382768,1719338011246,-709.2,0.00022191,2]
[330382769,1719338011256,-1249.47,0.00022191,2]
[330382770,1719338011266,-2499.52,0.00022191,2]
[330382771,1719338011278,-20168.94,0.00022191,2]
[330382772,1719338011288,-4133.33,0.00022191,2]
[330382773,1719338011297,-991.31,0.00022191,2]